bitfinex/quotes_BTCUSD_20250618
["timestamp","ask_amount","ask_price","bid_price","bid_amount"]
[1750289517633,5.28613857,104950.0,104940.0,0.0051]
[1750289519014,5.27721233,104950.0,104940.0,0.0051]
[1750289519258,5.28613778,104950.0,104940.0,0.0051]
[1750289520172,5.28613704,104950.0,104940.0,0.0051]
[1750289521358,5.29760699,104950.0,104940.0,0.0051]
[1750289521777,5.30518752,104950.0,104940.0,0.0051]
[1750289522098,5.34945253,104950.0,104940.0,0.0051]
[1750289522579,5.32625253,104950.0,104940.0,0.0051]
[1750289523064,5.46710532,104950.0,104940.0,0.0051]
[1750289523502,5.13058516,104940.0,104930.0,0.0158006]
[1750289523723,5.42053772,104940.0,104930.0,0.0158006]
[1750289523961,5.46435517,104940.0,104930.0,0.0158006]
[1750289524404,5.45766174,104940.0,104930.0,0.0158006]
[1750289524620,5.4643515,104940.0,104930.0,0.0158006]
[1750289525303,5.56050072,104940.0,104930.0,0.0158006]
[1750289525527,5.58914743,104940.0,104930.0,0.0158006]
[1750289525979,5.59014743,104940.0,104930.0,0.0158006]
[1750289526842,5.61966799,104940.0,104930.0,0.0158006]
[1750289527280,5.61964751,104940.0,104930.0,0.0158006]
[1750289527526,5.52549829,104940.0,104930.0,0.0158006]
[1750289527773,5.55406428,104940.0,104930.0,0.0158006]
[1750289530073,5.55405636,104940.0,104930.0,0.0092306]
[1750289530294,5.55405636,104940.0,104930.0,6.001e-05]
[1750289531808,5.5216862,104940.0,104930.0,6.001e-05]
[1750289532007,5.61783542,104940.0,104930.0,6.001e-05]
[1750289532873,5.61782527,104940.0,104930.0,6.001e-05]
[1750289535647,5.61782411,104940.0,104930.0,6.001e-05]
[1750289536301,5.49215433,104940.0,104930.0,6.001e-05]
[1750289541450,5.49215278,104940.0,104930.0,6.001e-05]
[1750289541677,5.52071877,104940.0,104930.0,6.001e-05]
[1750289544275,5.52072203,104940.0,104930.0,6.001e-05]
[1750289547197,5.49733058,104940.0,104930.0,6.001e-05]
[1750289547410,5.5800693,104940.0,104930.0,6.001e-05]
[1750289547836,5.49733058,104940.0,104930.0,6.001e-05]
[1750289548610,5.53539868,104940.0,104930.0,6.001e-05]
[1750289549887,5.53540823,104940.0,104930.0,6.001e-05]
[1750289552470,5.50684224,104940.0,104930.0,6.001e-05]
[1750289552902,5.50684966,104940.0,104930.0,6.001e-05]
[1750289553103,5.60299888,104940.0,104930.0,6.001e-05]
[1750289553677,5.35160966,104940.0,104930.0,6.001e-05]
[1750289553912,5.36854966,104940.0,104930.0,0.04256001]
[1750289554128,5.52342966,104940.0,104930.0,0.04256001]
[1750289555849,5.52343869,104940.0,104930.0,0.04256001]
[1750289556083,5.32871869,104940.0,104930.0,0.04256001]
[1750289556360,5.35403012,104940.0,104930.0,0.04256001]
[1750289556577,5.47094974,104940.0,104930.0,0.25222331]
[1750289556803,5.47095804,104940.0,104930.0,0.25222331]
[1750289557030,0.762194,104940.0,104930.0,0.26175292]
[1750289557290,0.92672325,104940.0,104930.0,0.26175292]
[1750289557801,0.92672325,104940.0,104930.0,0.2617531]
[1750289558059,0.92672325,104940.0,104930.0,0.2712828]
[1750289558794,0.92003475,104940.0,104930.0,0.2712828]
[1750289559008,0.57444966,104940.0,104930.0,0.28081241]
[1750289559726,0.56492041,104940.0,104930.0,0.28081177]
[1750289560023,0.54206762,104940.0,104930.0,0.28081177]
[1750289560245,0.73265271,104940.0,104930.0,0.28081177]
[1750289560682,0.76499025,104940.0,104930.0,0.28081177]
[1750289560898,0.38692735,104940.0,104930.0,0.28081177]
[1750289561106,0.43689882,104940.0,104930.0,0.28081177]
[1750289562365,0.63701307,104940.0,104930.0,0.28081177]
[1750289562814,0.64654232,104940.0,104930.0,0.28081177]
[1750289564280,0.44642798,104940.0,104930.0,0.28081177]
[1750289564547,0.63701307,104940.0,104930.0,0.28081177]
[1750289566655,0.64654232,104940.0,104930.0,0.28081177]
[1750289568723,0.64654232,104940.0,104930.0,0.25222294]
[1750289568967,0.6370138,104940.0,104930.0,0.2617531]
[1750289569520,0.6370138,104940.0,104930.0,0.2712828]
[1750289569708,0.6370138,104940.0,104930.0,0.2617531]
[1750289569930,0.627485,104940.0,104930.0,0.25222331]
[1750289570568,0.61795593,104940.0,104930.0,0.25222349]
[1750289571001,0.61795593,104940.0,104930.0,0.26175347]
[1750289571490,0.39705891,104940.0,104930.0,0.28081278]
[1750289571678,0.59717316,104940.0,104930.0,0.28081287]
[1750289572323,0.59717316,104940.0,104930.0,0.28081223]
[1750289572790,0.40658807,104940.0,104930.0,0.28081223]
[1750289573963,0.38752984,104940.0,104930.0,0.28081223]
[1750289574289,0.39705882,104940.0,104930.0,0.28081223]
[1750289574543,0.39705873,104940.0,104930.0,0.28081223]
[1750289576848,0.38752984,104940.0,104930.0,0.28081223]
[1750289577514,0.37800104,104940.0,104930.0,0.28081223]
[1750289577767,0.38752984,104940.0,104930.0,0.28081223]
[1750289578509,0.39705882,104940.0,104930.0,0.28081223]
[1750289578846,0.38752984,104940.0,104930.0,0.28081223]
[1750289579073,0.39705873,104940.0,104930.0,0.28081223]
[1750289580199,0.40658771,104940.0,104930.0,0.28081223]
[1750289581145,0.39705873,104940.0,104930.0,0.28081223]
[1750289581623,0.003,104940.0,104930.0,0.49688869]
[1750289581857,0.343,104940.0,104930.0,0.49688869]
[1750289583264,0.342,104940.0,104930.0,0.49688869]
[1750289583968,0.34,104940.0,104930.0,0.49688869]
[1750289584483,0.34,104940.0,104930.0,0.49788869]
[1750289584737,0.02099747,104950.0,104940.0,0.26307175]
[1750289584965,0.01146995,104950.0,104940.0,0.41791175]
[1750289585193,0.02099766,104950.0,104940.0,0.41791175]
[1750289585459,0.00952771,104950.0,104940.0,0.41791175]
[1750289586191,0.00952752,104950.0,104940.0,0.41791111]
[1750289586423,0.57241358,104960.0,104950.0,0.26305096]
[1750289586666,0.58132669,104960.0,104950.0,0.26305096]
[1750289586914,0.58132669,104960.0,104950.0,0.27257867]
[1750289587375,0.42146609,104960.0,104950.0,0.27257867]
[1750289587599,0.39865714,104960.0,104950.0,0.27257867]
[1750289587831,0.41018439,104960.0,104950.0,0.27257867]
[1750289588035,0.41218439,104960.0,104950.0,0.27257867]
[1750289589828,0.61226051,104960.0,104950.0,0.27257867]
[1750289590056,0.61226123,104960.0,104950.0,0.27257867]
[1750289592949,0.61225259,104960.0,104950.0,0.27257867]
[1750289595045,0.60272561,104960.0,104950.0,0.20962316]
[1750289595859,0.60272561,104960.0,104950.0,0.23292316]
[1750289596529,0.60272561,104960.0,104950.0,0.23292334]
[1750289597191,0.59319845,104960.0,104950.0,0.23292334]
[1750289600773,0.59319845,104960.0,104950.0,0.26415141]
[1750289601546,0.58429398,104960.0,104950.0,0.27367939]
[1750289601830,0.59319748,104960.0,104950.0,0.28320728]
[1750289602292,0.59319748,104960.0,104950.0,0.26415141]
[1750289602724,0.61599485,104960.0,104950.0,0.26415141]
[1750289603149,0.59319748,104960.0,104950.0,0.26415141]
[1750289603372,0.58367023,104960.0,104950.0,0.26415141]
[1750289603600,0.58367023,104960.0,104950.0,0.27367939]
[1750289603819,0.60646943,104960.0,104950.0,0.27367939]
[1750289604165,0.60646948,104960.0,104950.0,0.27367939]
[1750289604406,0.57476673,104960.0,104950.0,0.27367939]
[1750289604704,0.58367203,104960.0,104950.0,0.27367939]
[1750289605413,0.60647392,104960.0,104950.0,0.27367939]
[1750289605641,0.59694658,104960.0,104950.0,0.26415141]
[1750289606086,0.59694749,104960.0,104950.0,0.26415141]
[1750289606996,0.58742006,104960.0,104950.0,0.25462334]
[1750289607236,0.58742006,104960.0,104950.0,0.24459518]
[1750289607454,0.58742141,104960.0,104950.0,0.24459518]
[1750289608343,0.58742141,104960.0,104950.0,0.20009518]
[1750289609224,0.58742141,104960.0,104950.0,0.22209518]
[1750289610389,0.58742141,104960.0,104950.0,0.21256693]
[1750289610606,0.59411029,104960.0,104950.0,0.022]
[1750289610831,0.59411029,104960.0,104940.0,0.48359646]
[1750289611285,0.59411029,104960.0,104950.0,0.19056693]
[1750289611508,0.59411029,104960.0,104950.0,0.20009527]
[1750289611720,0.59212213,104960.0,104950.0,0.22209527]
[1750289611957,0.59412213,104960.0,104950.0,0.22209527]
[1750289612198,0.59412213,104960.0,104950.0,0.23162352]
[1750289613807,0.59412455,104960.0,104950.0,0.25312352]
[1750289616074,0.59412719,104960.0,104950.0,0.25312352]
[1750289618117,0.59412719,104960.0,104940.0,0.29582489]
[1750289618355,0.00952816,104950.0,104940.0,0.48327646]
[1750289618635,0.22807271,104950.0,104940.0,0.24221407]
[1750289618849,0.22807271,104950.0,104940.0,0.40662332]
[1750289619309,0.22807271,104950.0,104940.0,0.42568092]
[1750289619531,0.23760105,104950.0,104940.0,0.42568092]
[1750289619971,0.03750578,104950.0,104940.0,0.43520953]
[1750289620613,0.22807271,104950.0,104940.0,0.43520953]
[1750289621464,0.22807271,104950.0,104940.0,0.28032953]
[1750289621691,0.23760105,104950.0,104940.0,0.43520953]
[1750289621919,0.22867966,104950.0,104940.0,0.43520953]
[1750289622150,0.23760057,104950.0,104940.0,0.43520953]
[1750289622377,0.23760057,104950.0,104940.0,0.42568092]
[1750289623360,0.23760057,104950.0,104940.0,0.41615221]
[1750289623605,0.54011416,104940.0,104930.0,0.25162257]
[1750289623831,0.54964341,104940.0,104930.0,0.40646312]
[1750289624058,0.54964341,104940.0,104930.0,0.42552243]
[1750289624544,0.55917221,104940.0,104930.0,0.43505195]
[1750289624777,0.55917221,104940.0,104930.0,0.28121195]
[1750289625069,0.55917221,104940.0,104930.0,0.43613195]
[1750289625323,0.36858712,104940.0,104930.0,0.43613195]
[1750289625542,0.56870073,104940.0,104930.0,0.43613195]
[1750289625906,0.37811564,104940.0,104930.0,0.43613195]
[1750289626359,0.37811564,104940.0,104930.0,0.43813195]
[1750289626836,0.56870073,104940.0,104930.0,0.24509333]
[1750289627062,0.70782901,104940.0,104930.0,0.00306001]
[1750289627255,0.62144019,104940.0,104930.0,0.00306001]
[1750289627741,0.62144,104940.0,104930.0,0.00306001]
[1750289628178,0.62812646,104940.0,104930.0,0.00306001]
[1750289628382,0.62144,104940.0,104930.0,0.00306001]
[1750289630609,0.62143105,104940.0,104930.0,0.00306001]
[1750289631670,0.60013105,104940.0,104930.0,0.00306001]
[1750289632508,0.62143105,104940.0,104930.0,0.00306001]
[1750289632989,0.60013105,104940.0,104930.0,0.00306001]
[1750289633211,5.40031002,104940.0,104930.0,0.00306001]
[1750289633420,5.40031002,104940.0,104910.0,0.0001]
[1750289633421,5.09385391,104920.0,104910.0,0.0001]
[1750289633636,5.24881391,104920.0,104910.0,0.0001]
[1750289633860,5.09385391,104920.0,104910.0,0.0001]
[1750289634095,5.19009567,104920.0,104910.0,0.0001]
[1750289634318,5.303054,104920.0,104910.0,0.0001]
[1750289635631,5.21139567,104920.0,104910.0,0.0001]
[1750289635834,5.21139567,104920.0,104910.0,0.0011]
[1750289636047,5.19009567,104920.0,104910.0,0.0011]
[1750289636262,5.19009567,104920.0,104910.0,0.0021]
[1750289641430,5.19009567,104920.0,104910.0,0.19273959]
[1750289641666,5.19009567,104920.0,104910.0,0.22227147]
[1750289642438,5.19009567,104920.0,104910.0,0.23180326]
[1750289643075,5.18056506,104920.0,104910.0,0.22227147]
[1750289643887,5.17103418,104920.0,104910.0,0.0221]
[1750289644531,5.32623418,104920.0,104910.0,0.0221]
[1750289645764,5.10722796,104920.0,104910.0,0.0221]
[1750289645979,5.29784938,104920.0,104910.0,0.0221]
[1750289647426,5.29784938,104920.0,104910.0,0.0021]
[1750289647669,5.31754938,104920.0,104910.0,0.0021]
[1750289647954,5.29784938,104920.0,104910.0,0.0021]
[1750289650033,5.29784938,104920.0,104910.0,0.19273959]
[1750289650863,5.29784938,104920.0,104910.0,0.21243959]
[1750289651120,5.29784938,104920.0,104910.0,0.22197156]
[1750289651364,5.29784938,104920.0,104910.0,0.23150344]
[1750289653421,5.29784938,104920.0,104910.0,0.22197156]
[1750289653621,5.29784938,104920.0,104910.0,0.0218]
[1750289654081,5.29784938,104920.0,104910.0,0.21243959]
[1750289654547,5.29784938,104920.0,104910.0,0.22197156]
[1750289654781,5.31964938,104920.0,104910.0,0.0021]
[1750289656080,5.33768938,104920.0,104910.0,0.20227156]
[1750289656241,5.33768938,104920.0,104910.0,0.0021]
[1750289656881,5.36046428,104920.0,104910.0,0.0021]
[1750289657317,5.38066428,104920.0,104910.0,0.0021]
[1750289658409,5.39624434,104920.0,104910.0,0.0021]
[1750289658834,5.38956717,104920.0,104910.0,0.0021]
[1750289659048,5.39624554,104920.0,104910.0,0.0021]
[1750289659265,5.39624897,104920.0,104910.0,0.0021]
[1750289660625,5.39625135,104920.0,104910.0,0.0021]
[1750289661497,5.39626865,104920.0,104910.0,0.0021]
[1750289662147,5.39627925,104920.0,104910.0,0.0021]
[1750289662997,5.37607925,104920.0,104910.0,0.0021]
[1750289664949,5.37607944,104920.0,104910.0,0.0021]
[1750289665590,5.65544483,104920.0,104910.0,0.0021]
[1750289666032,5.59674462,104920.0,104910.0,0.0021]
[1750289666472,5.62527752,104920.0,104910.0,0.0021]
[1750289666680,5.62527752,104920.0,104910.0,0.0011]
[1750289667327,5.80543682,104920.0,104910.0,0.0001]
[1750289667545,5.77990392,104920.0,104910.0,0.0001]
[1750289667783,5.77148278,104920.0,104910.0,0.0001]
[1750289667996,5.78039374,104920.0,104910.0,0.0001]
[1750289668445,5.80690953,104920.0,104910.0,0.0001]
[1750289668657,5.80390953,104920.0,104910.0,0.0001]
[1750289669106,5.80990953,104920.0,104910.0,0.0001]
[1750289670053,6.30285304,104920.0,104910.0,0.0001]
[1750289670752,6.30286629,104920.0,104910.0,0.0001]
[1750289671221,5.98169797,104920.0,104910.0,0.0001]
[1750289672671,0.22972289,104900.0,104890.0,0.0001]
[1750289672910,5.1443161,104900.0,104890.0,0.0001]
[1750289673348,4.98505856,104900.0,104890.0,0.0001]
[1750289673597,5.39002146,104900.0,104890.0,0.0001]
[1750289674004,5.41868546,104900.0,104890.0,0.0001]
[1750289674239,5.39002146,104900.0,104890.0,0.0001]
[1750289675166,5.39002146,104900.0,104890.0,0.0011]
[1750289675905,5.53007068,104900.0,104890.0,0.0011]
[1750289676694,5.53006412,104900.0,104890.0,0.0011]
[1750289676936,5.50796412,104900.0,104890.0,0.0011]
[1750289677186,5.40455575,104900.0,104890.0,0.0431]
[1750289677441,5.40455299,104900.0,104890.0,0.0431]
[1750289677901,5.40455299,104900.0,104890.0,0.022]
[1750289679092,5.20931269,104900.0,104890.0,0.022]
[1750289679327,5.50086191,104900.0,104890.0,0.022]
[1750289679559,5.50086191,104900.0,104890.0,0.0011]
[1750289680491,5.52166191,104900.0,104890.0,0.0011]
[1750289683339,5.54246191,104900.0,104890.0,0.0011]
[1750289684023,5.54245838,104900.0,104890.0,0.0011]
[1750289687112,5.52165838,104900.0,104890.0,0.0011]
[1750289687544,5.55032238,104900.0,104890.0,0.0011]
[1750289687754,5.55026522,104900.0,104890.0,0.0011]
[1750289688417,5.57869517,104900.0,104890.0,0.0011]
[1750289690319,5.46174595,104900.0,104890.0,0.0455]
[1750289690737,5.46174595,104900.0,104890.0,0.023]
[1750289690962,5.404652,104900.0,104890.0,0.0455]
[1750289691167,5.209252,104900.0,104890.0,0.0455]
[1750289691374,5.404452,104900.0,104890.0,0.0455]
[1750289692264,5.49787569,104900.0,104890.0,0.0455]
[1750289692467,5.52630564,104900.0,104890.0,0.0455]
[1750289694758,5.43292195,104900.0,104890.0,0.0455]
[1750289696372,5.43293773,104900.0,104890.0,0.0455]
[1750289699589,5.43294134,104900.0,104890.0,0.0455]
[1750289699787,5.23770134,104900.0,104890.0,0.0455]
[1750289700030,5.43286134,104900.0,104890.0,0.0455]
[1750289700387,5.47087589,104900.0,104890.0,0.0455]
[1750289700787,5.43282134,104900.0,104890.0,0.0455]
[1750289701910,5.50542439,104900.0,104890.0,0.0455]
[1750289702268,5.54348357,104900.0,104890.0,0.0455]
[1750289703544,5.54348768,104900.0,104890.0,0.0455]
[1750289704584,5.31580463,104900.0,104890.0,0.0455]
[1750289704813,5.26122378,104900.0,104890.0,0.23617594]
[1750289705057,5.42079923,104900.0,104890.0,0.24570973]
[1750289705329,5.42744894,104900.0,104890.0,0.25524334]
[1750289705594,5.2873639,104900.0,104890.0,0.24570973]
[1750289705843,5.2778312,104900.0,104890.0,0.0455]
[1750289706964,5.2780712,104900.0,104890.0,0.0455]
[1750289707146,5.27138149,104900.0,104890.0,0.0455]
[1750289707443,5.27807123,104900.0,104890.0,0.0455]
[1750289707864,5.27807123,104900.0,104890.0,0.04302]
[1750289708078,5.27806741,104900.0,104890.0,0.04302]
[1750289710257,5.27806741,104900.0,104890.0,0.25276343]
[1750289710729,5.27806741,104900.0,104890.0,0.24322973]
[1750289710937,5.27806587,104900.0,104890.0,0.24322973]
[1750289711599,5.27806587,104900.0,104890.0,0.05255379]
[1750289711790,4.80509878,104900.0,104890.0,0.27183002]
[1750289712039,5.21999419,104900.0,104890.0,0.27183002]
[1750289712261,5.02933643,104900.0,104890.0,0.27183002]
[1750289712490,5.01980364,104900.0,104890.0,0.27183002]
[1750289713382,5.0108877,104900.0,104890.0,0.27183002]
[1750289713598,5.02042049,104900.0,104890.0,0.27183002]
[1750289714399,5.21107825,104900.0,104890.0,0.26229686]
[1750289714615,5.21107825,104900.0,104890.0,0.2718302]
[1750289715132,5.21107825,104900.0,104890.0,0.28136345]
[1750289715347,5.20439014,104900.0,104890.0,0.28136345]
[1750289715561,5.21107273,104900.0,104890.0,0.28136345]
[1750289716726,5.21107274,104900.0,104890.0,0.28136345]
[1750289717702,5.21107288,104900.0,104890.0,0.28136345]
[1750289717919,5.22060576,104900.0,104890.0,0.28136345]
[1750289718360,5.21392302,104900.0,104890.0,0.28136345]
[1750289718590,5.20439086,104900.0,104890.0,0.2718302]
[1750289720009,5.2015402,104900.0,104890.0,0.2718302]
[1750289722389,5.19485843,104900.0,104890.0,0.28136345]
[1750289722603,5.20154063,104900.0,104890.0,0.2718302]
[1750289722800,4.96366329,104900.0,104890.0,0.2718302]
[1750289723597,4.94091933,104900.0,104890.0,0.28136336]
[1750289723818,0.0285972,104900.0,104890.0,0.28136336]
[1750289724042,0.2381299,104900.0,104890.0,0.28136336]
[1750289724270,0.43832045,104900.0,104890.0,0.28136336]
[1750289724500,0.42878829,104900.0,104890.0,0.2718302]
[1750289724747,0.42878829,104900.0,104890.0,0.28136345]
[1750289724748,0.22878829,104900.0,104890.0,0.28136345]
[1750289726669,0.56878829,104900.0,104890.0,0.28136345]
[1750289728822,0.37813053,104900.0,104890.0,0.28136282]
[1750289731573,0.4206547,104900.0,104890.0,0.28136282]
[1750289733504,0.22999694,104900.0,104890.0,0.28136282]
[1750289734743,0.22046406,104900.0,104890.0,0.28136282]
[1750289739132,0.18233353,104900.0,104890.0,0.28136282]
[1750289739339,0.19186569,104900.0,104890.0,0.28136282]
[1750289739560,0.18233353,104900.0,104890.0,0.28136282]
[1750289739794,0.19186569,104900.0,104890.0,0.28136282]
[1750289740471,0.20139803,104900.0,104890.0,0.28136282]
[1750289740853,0.19186569,104900.0,104890.0,0.28136282]
[1750289741089,0.20139794,104900.0,104890.0,0.28136282]
[1750289741304,0.19186569,104900.0,104890.0,0.28136282]
[1750289742454,0.20139803,104900.0,104890.0,0.28136282]
[1750289742662,0.19186569,104900.0,104890.0,0.28136282]
[1750289743437,0.1918656,104900.0,104890.0,0.28136282]
[1750289745103,0.18233353,104900.0,104890.0,0.28136282]
[1750289745599,0.18233353,104900.0,104890.0,0.59381846]
[1750289746250,0.18233353,104900.0,104890.0,0.37760458]
[1750289747841,0.18233353,104900.0,104890.0,0.53260458]
[1750289752748,0.18233353,104900.0,104890.0,0.74881846]
[1750289752969,0.20570484,104910.0,104900.0,0.26405532]
[1750289754204,0.20770484,104910.0,104900.0,0.26405532]
[1750289754415,0.22676761,104910.0,104900.0,0.26405532]
[1750289754818,0.23629931,104910.0,104900.0,0.26405532]
[1750289755516,0.23729931,104910.0,104900.0,0.26405532]
[1750289756357,0.23729877,104910.0,104900.0,0.26405532]
[1750289757769,0.24683047,104910.0,104900.0,0.26405532]
[1750289760407,0.38683056,104910.0,104900.0,0.26405532]
[1750289761139,0.37729877,104910.0,104900.0,0.26405532]
[1750289761607,0.37159393,104910.0,104900.0,0.26405532]
[1750289761852,0.3620625,104910.0,104900.0,0.26405532]
[1750289762519,0.35253116,104910.0,104900.0,0.26405532]
[1750289763789,0.343,104910.0,104900.0,0.26405532]
[1750289764069,0.35253116,104910.0,104900.0,0.26405532]
[1750289764734,0.36206241,104910.0,104900.0,0.26405532]
[1750289765458,0.37159384,104910.0,104900.0,0.26405532]
[1750289765909,0.36206241,104910.0,104900.0,0.26405532]
[1750289766135,0.36206241,104910.0,104900.0,0.41897532]
[1750289772748,0.35253116,104910.0,104900.0,0.41897532]
[1750289773283,0.36206241,104910.0,104900.0,0.41897532]
[1750289774027,0.35253116,104910.0,104900.0,0.41897532]
[1750289774289,0.3620625,104910.0,104900.0,0.41897532]
[1750289774506,0.35253116,104910.0,104900.0,0.41897532]
[1750289774918,0.343,104910.0,104900.0,0.41897532]
[1750289775153,0.35253116,104910.0,104900.0,0.41897532]
[1750289775518,0.36206241,104910.0,104900.0,0.41897532]
[1750289775963,0.36206241,104910.0,104900.0,0.41657532]
[1750289777748,0.37159384,104910.0,104900.0,0.41657532]
[1750289778575,0.36206241,104910.0,104900.0,0.41657532]
[1750289780134,0.37159375,104910.0,104900.0,0.41657532]
[1750289782043,0.37159375,104910.0,104900.0,0.41661532]
[1750289782463,0.38112536,104910.0,104900.0,0.41661532]
[1750289782672,0.38112527,104910.0,104900.0,0.41661532]
[1750289783475,0.37159375,104910.0,104900.0,0.41661532]
[1750289789007,0.35253116,104910.0,104900.0,0.41661532]
[1750289789499,0.3620625,104910.0,104900.0,0.41661532]
[1750289789750,0.35253116,104910.0,104900.0,0.41661532]
[1750289789973,0.343,104910.0,104900.0,0.41661532]
[1750289790180,0.343,104910.0,104900.0,0.72902345]
[1750289790405,0.003,104910.0,104900.0,0.72902345]
[1750289791339,0.003,104910.0,104900.0,0.51285708]
[1750289791555,0.002,104910.0,104900.0,0.51285708]
[1750289791795,0.35906068,104920.0,104910.0,0.21923442]
[1750289792009,0.36859138,104920.0,104910.0,0.26983442]
[1750289792443,0.36859129,104920.0,104910.0,0.26983442]
[1750289797702,0.37812217,104920.0,104910.0,0.24463442]
[1750289798156,0.37803735,104920.0,104910.0,0.24463442]
[1750289798370,0.36850647,104920.0,104910.0,0.24463442]
[1750289798849,0.37803717,104920.0,104910.0,0.24463442]
[1750289799491,0.35897586,104920.0,104910.0,0.24463442]
[1750289799700,0.36850647,104920.0,104910.0,0.24463442]
[1750289801095,0.35897586,104920.0,104910.0,0.26943442]
[1750289801531,0.36850647,104920.0,104910.0,0.26943442]
[1750289801742,0.35897586,104920.0,104910.0,0.26943442]
[1750289801968,0.36850638,104920.0,104910.0,0.26943442]
[1750289804165,0.37803708,104920.0,104910.0,0.26943442]
[1750289804396,0.36850638,104920.0,104910.0,0.26943442]
[1750289804597,0.37803708,104920.0,104910.0,0.26943442]
[1750289808063,0.36850638,104920.0,104910.0,0.26943442]
[1750289808486,0.37803699,104920.0,104910.0,0.26943442]
[1750289810019,0.36850638,104920.0,104910.0,0.26943442]
[1750289811361,0.37803708,104920.0,104910.0,0.42431442]
[1750289811564,0.35897586,104920.0,104910.0,0.42431442]
[1750289812497,0.36850638,104920.0,104910.0,0.42431442]
[1750289812906,0.03812181,104920.0,104910.0,0.42431442]
[1750289813212,0.23812181,104920.0,104910.0,0.42431442]
[1750289813612,0.24765251,104920.0,104910.0,0.42431442]
[1750289814692,0.24765314,104920.0,104910.0,0.42431442]
[1750289814929,0.42874413,104920.0,104910.0,0.23510308]
[1750289815154,0.24331361,104920.0,104910.0,0.20166487]
[1750289815379,4.7686933,104920.0,104910.0,0.20166496]
[1750289815605,4.80711721,104920.0,104910.0,0.20166496]
[1750289815830,4.79758633,104920.0,104910.0,0.20166496]
[1750289816711,4.79758633,104920.0,104910.0,0.21119675]
[1750289816994,4.77476312,104920.0,104910.0,0.21119675]
[1750289817213,4.79758787,104920.0,104910.0,0.21119684]
[1750289817432,4.78867317,104920.0,104910.0,0.21119684]
[1750289817647,4.79758987,104920.0,104910.0,0.21119684]
[1750289818776,4.81542821,104920.0,104910.0,0.21119684]
[1750289818995,4.81542821,104920.0,104910.0,0.0014934]
[1750289820141,4.81543392,104920.0,104910.0,0.0014934]
[1750289820830,5.08133653,104920.0,104910.0,0.0014934]
[1750289821055,5.51748575,104920.0,104910.0,0.0014934]
[1750289821377,5.5460052,104920.0,104910.0,0.0014934]
[1750289821636,5.51748575,104920.0,104910.0,0.0014934]
[1750289822736,5.51745717,104920.0,104910.0,0.0014934]
[1750289823178,5.54597662,104920.0,104910.0,0.0014934]
[1750289825731,5.54596692,104920.0,104910.0,0.0014934]
[1750289826203,5.4498177,104920.0,104910.0,0.0014934]
[1750289828337,5.44980593,104920.0,104910.0,0.0014934]
[1750289828960,5.44978695,104920.0,104910.0,0.0014934]
[1750289831241,5.44978589,104920.0,104910.0,0.0014934]
[1750289831415,5.47844289,104920.0,104910.0,0.0014934]
[1750289831668,5.57459211,104920.0,104910.0,0.0014934]
[1750289834099,5.57458298,104920.0,104910.0,0.0014934]
[1750289834941,4.72906389,104900.0,104890.0,0.10065405]
[1750289835167,4.92494389,104900.0,104890.0,0.07665405]
[1750289835657,4.693504,104900.0,104890.0,0.07665405]
[1750289835908,4.88416176,104900.0,104890.0,0.07665405]
[1750289836389,4.88416176,104900.0,104890.0,0.07965405]
[1750289836629,4.90322689,104900.0,104890.0,0.07965405]
[1750289837460,4.90322689,104900.0,104890.0,0.003]
[1750289837599,4.92752689,104900.0,104890.0,0.003]
[1750289838037,4.92752689,104900.0,104890.0,0.007]
[1750289838236,4.88032763,104900.0,104890.0,0.007]
[1750289839083,4.85602763,104900.0,104890.0,0.007]
[1750289839322,4.85602763,104900.0,104890.0,0.004]
[1750289839578,4.85602763,104900.0,104890.0,0.005]
[1750289840407,4.85602763,104900.0,104890.0,0.001]
[1750289840653,4.85602763,104900.0,104890.0,0.003]
[1750289841114,4.87922763,104900.0,104890.0,0.003]
[1750289842514,4.85602763,104900.0,104890.0,0.003]
[1750289842786,4.89006089,104900.0,104890.0,0.003]
[1750289843227,5.23006089,104900.0,104890.0,0.003]
[1750289843862,5.3655435,104900.0,104890.0,0.003]
[1750289844759,5.37222268,104900.0,104890.0,0.003]
[1750289844977,5.34752268,104900.0,104890.0,0.003]
[1750289845482,5.3408435,104900.0,104890.0,0.003]
[1750289845740,5.37032411,104900.0,104890.0,0.003]
[1750289845986,5.37032411,104900.0,104890.0,0.00216]
[1750289846435,5.3475227,104900.0,104890.0,0.00216]
[1750289846659,5.37032766,104900.0,104890.0,0.00216]
[1750289847115,5.37032752,104900.0,104890.0,0.00216]
[1750289848438,5.37033083,104900.0,104890.0,0.00216]
[1750289850452,5.3792458,104900.0,104890.0,0.00216]
[1750289851257,5.37924979,104900.0,104890.0,0.00216]
[1750289851770,5.33604432,104900.0,104890.0,0.00216]
[1750289852031,5.33604366,104900.0,104890.0,0.00216]
[1750289853510,5.35510879,104900.0,104890.0,0.19283594]
[1750289853732,5.35510879,104900.0,104890.0,0.00216]
[1750289854162,5.19962911,104900.0,104890.0,0.00216]
[1750289856859,5.19962987,104900.0,104890.0,0.19283594]
[1750289857658,5.19963044,104900.0,104890.0,0.00216]
[1750289857873,5.19963044,104900.0,104890.0,0.19283594]
[1750289858991,5.19963044,104900.0,104890.0,0.20236973]
[1750289859983,5.19962943,104900.0,104890.0,0.20236973]
[1750289860613,5.15934943,104900.0,104890.0,0.23530334]
[1750289860853,5.15934943,104900.0,104890.0,0.26963686]
[1750289861064,5.19962943,104900.0,104890.0,0.26010343]
[1750289861282,5.19962943,104900.0,104890.0,0.26963704]
[1750289862782,5.18402746,104900.0,104890.0,0.26963704]
[1750289863029,5.19963308,104900.0,104890.0,0.26963704]
[1750289863216,5.15935308,104900.0,104890.0,0.26963704]
[1750289863441,5.19939308,104900.0,104890.0,0.26963704]
[1750289863945,5.19939308,104900.0,104890.0,0.27917056]
[1750289865609,5.00372663,104900.0,104890.0,0.28870336]
[1750289866297,0.54328963,104900.0,104890.0,0.28870336]
[1750289867599,0.54329481,104900.0,104890.0,0.28870336]
[1750289867823,0.5528276,104900.0,104890.0,0.28870336]
[1750289868199,0.74348536,104900.0,104890.0,0.28870336]
[1750289868385,0.75301824,104900.0,104890.0,0.28870336]
[1750289868586,0.75301824,104900.0,104890.0,0.2791702]
[1750289868897,0.74348608,104900.0,104890.0,0.26963677]
[1750289869422,0.73395365,104900.0,104890.0,0.26010325]
[1750289869646,0.72442095,104900.0,104890.0,0.26010325]
[1750289871305,0.72442095,104900.0,104890.0,0.05036]
[1750289871542,5.17532484,104900.0,104890.0,0.02556]
[1750289874219,5.15971436,104900.0,104890.0,0.02556]
[1750289874440,5.15971436,104900.0,104890.0,0.00216]
[1750289874660,5.17532462,104900.0,104890.0,0.00216]
[1750289875797,5.13528462,104900.0,104890.0,0.00216]
[1750289876040,5.17532462,104900.0,104890.0,0.00216]
[1750289876487,5.15971436,104900.0,104890.0,0.00216]
[1750289877201,5.17532453,104900.0,104890.0,0.00216]
[1750289877654,5.17532467,104900.0,104890.0,0.00216]